bitfinex/quotes_SOLUSD_20240727
["timestamp","ask_amount","ask_price","bid_price","bid_amount"]
[1722112115125,20.0,180.41,180.2,16.79]
[1722112115346,40.0,180.43,180.25,5.5477]
[1722112115539,40.0,180.43,180.21,45.34]
[1722112115540,40.0,180.45,180.27,5.5471]
[1722112115743,5.543,180.41,180.27,5.5471]
[1722112115919,20.0,180.42,180.25,5.5478]
[1722112116244,5.5436,180.39,180.26,45.0]
[1722112116417,21.4343,180.46,180.3,5.5462]
[1722112116617,20.0,180.48,180.34,5.5449]
[1722112116820,5.5402,180.5,180.35,45.0]
[1722112117022,5.5402,180.5,180.28,23.1241]
[1722112117023,5.8048095,180.51,180.33,0.17]
[1722112117313,5.5403,180.5,180.36,5.5443]
[1722112117713,5.5403,180.5,180.33,0.17]
[1722112117918,5.5405,180.49,180.33,0.17]
[1722112118127,20.0,180.5,180.33,0.17]
[1722112118332,5.5424,180.43,180.29,5.7165]
[1722112118536,5.5417,180.45,180.3,50.5461]
[1722112118722,5.5417,180.45,180.31,5.5458]
[1722112118920,36.79,180.49,180.32,5.5455]
[1722112119118,20.0,180.51,180.3,45.0]
[1722112119319,20.0,180.51,180.35,5.5446]
[1722112119527,5.5403,180.5,180.36,5.5443]
[1722112119830,20.0,180.51,180.34,5.5448]
[1722112119831,5.5406,180.49,180.34,5.5448]
[1722112120035,5.5405,180.49,180.35,5.5446]
[1722112120241,5.5412,180.47,180.31,0.34]
[1722112120539,5.5407,180.48,180.32,0.34]
[1722112120748,5.542,180.44,180.3,5.8861]
[1722112121051,5.8824,180.43,180.29,5.5464]
[1722112121337,45.0,180.42,180.28,6.3341]
[1722112121536,0.34,180.41,180.28,6.3341]
[1722112121746,45.0,180.42,180.28,6.3341]
[1722112121919,5.8829,180.41,180.28,6.3341]
[1722112122122,40.0,180.38,180.21,6.3341]
[1722112122324,20.0,180.35,180.21,6.3341]
[1722112122542,20.34,180.34,180.16,0.2934]
[1722112122753,20.34,180.34,180.17,5.5502]
[1722112122754,5.5459,180.32,180.17,5.5502]
[1722112123044,0.34,180.31,180.17,5.5502]
[1722112123224,0.34,180.31,180.16,0.2934]
[1722112123424,20.17,180.32,180.2,5.5492]
[1722112123823,20.17,180.32,180.16,0.2934]
[1722112124039,0.17,180.32,180.2,5.5492]
[1722112124340,0.34,180.32,180.16,0.2934]
[1722112124556,0.17,180.31,180.16,0.2934]
[1722112125243,20.0,180.35,180.16,0.2934]
[1722112125547,0.34,180.34,180.21,5.549]
[1722112125842,0.34,180.34,180.18,5.5498]
[1722112125843,85.34,180.34,180.18,5.5498]
[1722112126039,5.546,180.31,180.16,5.5503]
[1722112126231,0.34,180.3,180.14,23.9568276]
[1722112126443,20.0,180.32,180.22,5.5486]
[1722112126663,20.0,180.32,180.2,5.5491]
[1722112126820,0.17,180.31,180.19,5.5496]
[1722112127155,0.17,180.31,180.17,5.5502]
[1722112127348,5.5473,180.27,180.14,7.1668276]
[1722112127522,40.34,180.26,180.14,0.8327276]
[1722112127720,20.0,180.24,180.14,0.8327276]
[1722112127915,0.34,180.23,180.14,0.8327276]
[1722112128136,25.8886,180.23,180.14,0.8327276]
[1722112128353,45.0,180.22,180.14,0.8327276]
[1722112128541,20.34,180.21,180.14,0.8327276]
[1722112128745,20.0,180.26,180.14,0.8327276]
[1722112128919,5.8124604,180.31,180.14,0.8327276]
[1722112128920,5.5485,180.23,180.14,0.8327276]
[1722112129120,20.0,180.25,180.14,0.8327276]
[1722112129435,5.5486,180.23,180.14,0.8327276]
[1722112129753,6.3341,180.33,180.0,6.3341]
[1722112129754,20.0,180.22,180.0,6.3341]
[1722112129922,20.0,180.3,180.14,0.6174882]
[1722112130128,26.3341,180.33,180.14,0.6174882]
[1722112130129,40.0,180.33,180.14,0.6174882]
[1722112130333,20.0,180.3,180.14,0.6174882]
[1722112130530,20.0,180.27,180.14,0.6174882]
[1722112130740,36.79,180.29,180.14,0.6174882]
[1722112130933,5.5476,180.26,180.14,0.6174882]
[1722112131130,20.0,180.27,180.14,0.6174882]
[1722112131438,5.5498,180.19,180.14,0.6174882]
[1722112131639,5.5495,180.2,180.14,0.6174882]
[1722112131844,5.5486,180.23,180.14,0.6174882]
[1722112132045,5.5494,180.2,180.14,0.6174882]
[1722112132245,5.5492,180.21,180.14,0.6174882]
[1722112132643,20.0,180.2,180.14,0.6174882]
[1722112132947,45.34,180.19,180.14,0.6174882]
[1722112133747,20.0,180.22,180.14,0.6174882]
[1722112133972,20.0,180.2,180.14,0.6174882]
[1722112134160,5.5507,180.16,180.14,0.6174882]
[1722112134626,40.0,180.15,180.14,0.6174882]
[1722112134925,60.34,180.15,180.14,0.6174882]
[1722112135121,122.13,180.15,180.14,0.6174882]
[1722112135328,102.13,180.15,180.14,0.6174882]
[1722112135549,122.13,180.15,180.14,0.6174882]
[1722112135749,102.13,180.15,180.14,0.6174882]
[1722112136155,65.34,180.15,180.14,0.6174882]
[1722112136450,65.0,180.15,180.14,0.6174882]
[1722112136954,20.0,180.15,180.14,0.6174882]
[1722112137147,20.0,180.22,180.14,0.6174882]
[1722112137339,5.5492,180.21,180.14,0.6174882]
[1722112137653,56.79,180.2,180.14,0.6174882]
[1722112137853,40.0,180.18,180.14,0.6174882]
[1722112138028,16.79,180.2,180.14,0.6174882]
[1722112138029,20.0,180.15,180.14,0.6174882]
[1722112138226,20.0,180.21,180.14,0.6174882]
[1722112138662,5.5499,180.19,180.14,0.6174882]
[1722112138839,5.5506,180.16,180.14,0.6174882]
[1722112139233,5.5501,180.18,180.14,0.6174882]
[1722112139433,20.0,180.17,180.14,0.6174882]
[1722112139638,36.2527,180.23,180.14,0.6174882]
[1722112140041,41.8012,180.23,180.14,0.6174882]
[1722112140255,20.0,180.22,180.14,0.6174882]
[1722112140459,16.2527,180.23,180.14,0.6174882]
[1722112140835,5.5501,180.18,180.14,0.6174882]
[1722112141153,20.0,180.21,180.14,0.6174882]
[1722112141154,5.5506,180.16,180.14,0.6174882]
[1722112141477,25.5506,180.16,180.14,0.6174882]
[1722112141659,5.5502,180.18,180.14,0.6174882]
[1722112141954,5.5507,180.16,180.14,0.6174882]
[1722112142131,85.34,180.15,180.14,0.6174882]
[1722112142957,102.13,180.15,180.14,0.6174882]
[1722112143340,5.5518,180.12,180.06,0.7817458]
[1722112143556,65.17,180.11,180.06,0.7817458]
[1722112143854,0.17,180.1,180.06,0.7817458]
[1722112144054,6.2466,180.16,180.06,0.7817458]
[1722112144055,42.4993,180.23,180.06,0.7817458]
[1722112144262,22.4993,180.23,180.08,13.8827]
[1722112144430,42.4993,180.23,180.08,13.8827]
[1722112144633,20.0,180.2,180.06,0.7817458]
[1722112144861,5.5498,180.19,180.06,0.7817458]
[1722112145167,5.5515,180.13,180.06,0.7817458]
[1722112145367,20.0,180.14,180.06,0.7817458]
[1722112145541,16.79,180.16,180.06,0.7817458]
[1722112145542,5.5507,180.16,180.06,0.7817458]
[1722112145742,25.5513,180.14,180.06,0.7817458]
[1722112145942,20.0,180.16,180.06,0.7817458]
[1722112145943,45.34,180.13,180.06,0.7817458]
[1722112146145,0.34,180.13,180.06,0.7817458]
[1722112146472,20.0,180.15,180.06,0.7817458]
[1722112146776,21.804,180.31,180.18,5.5498]
[1722112146935,21.804,180.31,180.08,42.97]
[1722112146936,36.2527,180.31,180.08,42.97]
[1722112147136,16.2527,180.31,180.09,82.05]
[1722112147361,36.2527,180.31,180.16,19.4266]
[1722112147541,36.2527,180.31,180.13,5.5513]
[1722112147542,40.0,180.29,180.13,5.5513]
[1722112147741,20.0,180.22,180.09,5.5527]
[1722112147947,20.0,180.28,180.12,5.5518]
[1722112148254,20.0,180.28,180.15,5.5508]
[1722112148563,20.0,180.28,180.16,5.5504]
[1722112148858,20.0,180.28,180.07,22.8177]
[1722112148859,20.0,180.26,180.15,5.5506]
[1722112149041,5.5463,180.3,180.08,26.18]
[1722112149042,20.0,180.24,180.08,26.18]
[1722112149241,20.0,180.22,180.09,45.0]
[1722112149440,20.0,180.18,180.07,11.6609]
[1722112149663,20.0,180.18,180.07,6.1077]
[1722112149863,20.0,180.16,180.06,0.7817458]
[1722112150163,20.0,180.13,180.06,0.7817458]
[1722112150558,20.17,180.15,180.06,6.3353458]
[1722112150872,20.0,180.13,180.06,0.7817458]
[1722112151172,0.17,180.15,180.06,0.7817458]
[1722112151535,20.0,180.2,180.06,14.6658458]
[1722112151741,45.0,180.19,180.07,5.5531]
[1722112152042,20.0,180.18,180.11,5.552]
[1722112152263,40.0,180.27,180.06,0.7817458]
[1722112152462,36.2527,180.31,180.07,0.34]
[1722112152666,20.0,180.36,180.21,5.5488]
[1722112152872,20.0,180.36,180.14,16.71]
[1722112153068,5.5454,180.33,180.15,45.34]
[1722112153351,15.9332,180.39,180.2,5.5493]
[1722112153352,36.71,180.37,180.2,5.5493]
[1722112153550,36.71,180.37,180.21,5.5489]
[1722112153772,56.71,180.37,180.21,5.5489]
[1722112153973,5.5452,180.34,180.19,5.5495]
[1722112154159,5.5455,180.33,180.19,5.5495]
[1722112154764,5.5449,180.35,180.15,0.34]
[1722112154960,20.0,180.37,180.15,0.34]
[1722112155266,25.5442,180.37,180.22,5.5486]
[1722112155576,5.5439,180.38,180.24,5.548]
[1722112155779,15.9332,180.39,180.27,5.5471]
[1722112156789,35.9332,180.46,180.18,17.81922313]
[1722112157089,35.9332,180.46,180.17,26.13]
[1722112157090,58.1846,180.46,180.31,5.5459]
[1722112157381,40.0,180.4,180.19,0.34]
[1722112157552,20.0,180.43,180.2,16.71]
[1722112157756,40.0,180.43,180.28,5.5467]
[1722112157984,21.4748,180.46,180.32,5.5455]
[1722112158281,15.9332,180.46,180.33,5.5452]
[1722112158478,15.9332,180.46,180.25,16.71]
[1722112158658,15.9332,180.46,180.27,16.71]
[1722112158855,15.9332,180.46,180.29,16.71]
[1722112159052,20.0,180.49,180.28,65.34]
[1722112159053,25.5405,180.49,180.3,0.34]
[1722112159252,25.5405,180.49,180.24,6.4287]
[1722112159253,20.0,180.45,180.24,6.4287]
[1722112159466,20.0,180.47,180.24,6.4287]
[1722112159660,20.0,180.49,180.37,5.544]
[1722112159856,20.0,180.49,180.35,5.5445]
[1722112160182,15.9332,180.51,180.28,16.71]
[1722112160401,20.0,180.5,180.37,5.544]
[1722112160687,21.4731,180.51,180.29,45.0]
[1722112160879,5.5414,180.46,180.3,0.34]
[1722112161201,5.5411,180.47,180.32,5.5455]
[1722112161491,15.9332,180.51,180.4,5.5431]
[1722112161805,15.9332,180.51,180.33,45.34]
[1722112162477,15.9332,180.51,180.27,26.13]
[1722112162478,5.5412,180.47,180.27,26.13]
[1722112162791,55.9332,180.51,180.27,26.13]
[1722112162973,61.4731,180.51,180.27,26.13]
[1722112163294,70.5402,180.5,180.27,26.13]
[1722112163479,0.34,180.49,180.27,26.13]
[1722112163871,0.34,180.49,180.39,5.5434]
[1722112164390,0.34,180.49,180.37,5.544]
[1722112165792,20.34,180.49,180.28,45.34]
[1722112165991,45.0,180.48,180.29,20.0]
[1722112166204,0.34,180.47,180.38,5.5438]
[1722112166377,45.0,180.48,180.37,0.17]
[1722112166576,25.5381,180.57,180.43,5.5421]
[1722112166808,25.5381,180.57,180.37,0.17]
[1722112166809,20.0,180.57,180.37,0.17]
[1722112167805,20.0,180.57,180.44,5.5419]
[1722112168019,20.0,180.57,180.45,5.5416]
[1722112168478,25.5373,180.6,180.45,5.5416]
[1722112168679,20.0,180.56,180.38,6.4287]
[1722112168879,20.0,180.56,180.39,45.17]
[1722112169110,20.0,180.56,180.43,5.5421]
[1722112169315,20.0,180.56,180.39,45.17]
[1722112169487,20.0,180.56,180.46,5.5413]
[1722112169686,20.0,180.58,180.46,5.5413]
[1722112169888,20.0,180.55,180.46,5.5413]
[1722112170085,20.0,180.57,180.46,5.5413]
[1722112170502,5.5371,180.6,180.47,5.541]
[1722112170808,15.9332,180.61,180.49,5.5404]
[1722112170809,35.9332,180.61,180.49,5.5404]
[1722112171102,35.9332,180.61,180.47,5.5409]
[1722112171302,35.9332,180.61,180.39,45.17]
[1722112171538,35.9332,180.61,180.49,5.5404]
[1722112171887,35.9332,180.61,180.39,45.17]
[1722112171888,20.0,180.57,180.39,0.17]
[1722112172088,5.5405,180.49,180.31,6.3818]
[1722112172404,5.5412,180.47,180.31,6.3818]
[1722112172597,45.0,180.48,180.31,6.3818]
[1722112172787,45.0,180.49,180.31,6.3818]
[1722112172983,45.0,180.49,180.41,5.5428]
[1722112173207,20.0,180.56,180.42,5.5425]
[1722112173410,45.34,180.55,180.43,5.5422]
[1722112173612,20.0,180.55,180.32,42.84]
[1722112173919,20.0,180.55,180.31,8.54801799]
[1722112173920,21.4701,180.61,180.48,5.5407]
[1722112174224,15.9332,180.61,180.49,5.5402]
[1722112174802,15.9332,180.61,180.5,5.54]
[1722112175307,15.9332,180.61,180.43,26.13]
[1722112175308,15.9332,180.61,180.45,6.3818]
[1722112175619,21.8759,180.68,180.53,5.539]
[1722112175822,21.8759,180.68,180.46,0.34]
[1722112175997,16.3412,180.68,180.55,5.5385]
[1722112176319,16.3412,180.68,180.56,5.5382]
[1722112176525,16.3412,180.68,180.46,0.34]
[1722112176715,0.7817458,180.7,180.62,5.5362]
[1722112176892,0.7817458,180.7,180.53,26.13]
[1722112177099,0.7817458,180.7,180.54,65.34]
[1722112177500,0.7817458,180.7,180.56,5.538]
[1722112177722,0.7817458,180.7,180.57,5.5379]
[1722112178017,20.7817458,180.7,180.45,7.2927]
[1722112178221,0.7817458,180.7,180.46,65.34]
[1722112178432,0.7817458,180.7,180.57,5.5379]
[1722112178604,0.7817458,180.7,180.49,16.71]
[1722112178808,0.7817458,180.7,180.54,26.13]
[1722112179020,0.7817458,180.7,180.61,5.5366]
[1722112179330,0.7817458,180.7,180.55,0.34]
[1722112179497,0.7817458,180.7,180.63,5.536]
[1722112179693,0.7817458,180.7,180.55,0.34]
[1722112179899,0.7817458,180.7,180.64,5.5357]
[1722112180094,0.7817458,180.7,180.65,5.5354]
[1722112180321,0.7817458,180.7,180.57,6.3818]
[1722112180527,0.7817458,180.7,180.65,5.5354]
[1722112180905,0.7817458,180.7,180.58,0.34]
[1722112180906,0.7817458,180.7,180.66,1.10687906]
[1722112181209,0.7817458,180.7,180.67,5.5347]
[1722112181612,0.7817458,180.7,180.59,26.13]
[1722112181831,0.7817458,180.7,180.68,5.5343]
[1722112181999,0.7817458,180.7,180.6,45.34]
[1722112182000,6.4292,180.8,180.6,45.34]
[1722112182324,6.4292,180.8,180.7,5.5339]
[1722112182714,6.4292,180.8,180.64,26.13]
[1722112182904,16.3412,180.83,180.65,62.05]
[1722112183338,16.3412,180.83,180.67,16.71]
[1722112183539,16.3412,180.83,180.69,42.84]
[1722112183706,16.3412,180.83,180.7,0.34]
[1722112183907,16.3412,180.83,180.7,45.34]
[1722112184209,16.3412,180.83,180.74,5.5326]
[1722112184634,6.4292,180.87,180.7,45.34]
[1722112184831,6.4292,180.87,180.77,5.5317]
[1722112185006,6.4292,180.87,180.7,45.34]
[1722112185211,6.4292,180.87,180.78,5.5314]
[1722112185446,0.7817458,180.88,180.79,0.34]
[1722112185604,0.7817458,180.88,180.82,5.5302]
[1722112185809,0.7817458,180.88,180.79,0.34]
[1722112186823,0.7817458,180.88,180.79,0.17]
[1722112187030,0.7817458,180.88,180.78,45.34]
[1722112187235,0.7817458,180.88,180.78,0.17]
[1722112187435,0.7817458,180.88,180.78,5.5314]
[1722112187736,0.7817458,180.88,180.77,0.34]
[1722112187907,0.7817458,180.88,180.78,5.5315]
[1722112188105,0.7817458,180.88,180.76,0.34]
[1722112188330,0.7817458,180.88,180.62,46.13]
[1722112188331,6.4292,180.87,180.68,26.13]
[1722112188537,36.3412,180.86,180.69,5.5341]
[1722112188839,36.3412,180.86,180.62,26.13]
[1722112189146,33.8412,180.86,180.71,5.5335]
[1722112189318,20.0,180.84,180.62,26.13]
[1722112189515,45.34,180.83,180.69,5.5341]
[1722112189720,45.34,180.83,180.67,5.5347]
[1722112189925,16.3412,180.86,180.62,42.84]
[1722112190243,16.3412,180.86,180.67,42.84]
[1722112190443,16.3412,180.86,180.73,26.13]
[1722112190633,16.3412,180.86,180.73,42.84]
[1722112190833,22.7704,180.94,180.79,5.5311]
[1722112191068,28.2973,180.94,180.73,26.13]
[1722112191225,22.7704,180.94,180.8,5.5308]
[1722112191424,22.7704,180.94,180.81,5.5305]
[1722112191828,22.7704,180.94,180.82,5.5302]
[1722112192132,22.7704,180.94,180.74,65.17]
[1722112192333,22.7704,180.94,180.85,5.5292]
[1722112192522,22.7704,180.94,180.86,5.5289]
[1722112193321,22.7704,180.94,180.75,0.17]
[1722112193545,22.7704,180.94,180.74,6.2189]
[1722112193757,5.5275,180.92,180.72,26.13]
[1722112193926,22.7704,180.94,180.72,26.13]
[1722112194255,22.7704,180.94,180.84,5.5296]
[1722112194553,22.7704,180.94,180.84,5.5295]
[1722112194855,22.7704,180.94,180.72,29.42644893]
[1722112195055,5.5272,180.93,180.78,5.5313]
[1722112195230,28.2973,180.94,180.79,5.5309]
[1722112195425,20.0,180.91,180.75,5.5324]
[1722112195625,5.5274,180.92,180.77,5.5318]
[1722112195827,20.0,180.95,180.68,6.2189]
[1722112196046,0.34,180.94,180.79,5.5311]
[1722112196347,45.34,180.94,180.76,13.8301]
[1722112196562,20.0,180.93,180.69,16.71]
[1722112196758,20.0,180.93,180.66,26.13]
[1722112196759,20.0,180.86,180.66,26.13]
[1722112197051,20.0,180.8,180.57,2.11282821]
[1722112197355,20.0,180.79,180.65,5.5353]
[1722112197655,20.34,180.79,180.69,5.5341]
[1722112197867,45.0,180.78,180.66,13.8375]
[1722112198030,20.34,180.79,180.66,13.8375]
[1722112198363,20.0,180.84,180.71,13.834]
[1722112198553,0.34,180.83,180.73,5.5329]
[1722112198737,20.0,180.88,180.74,5.5326]
[1722112198938,22.3192,180.9,180.71,16.71]
[1722112199137,22.3192,180.9,180.62,1.10624757]
[1722112199138,22.3192,180.9,180.73,16.71]
[1722112199459,22.3192,180.9,180.79,13.8275]
[1722112200038,22.3192,180.9,180.74,59.1719]
[1722112200236,22.3192,180.9,180.76,5.5319]
[1722112200537,22.3192,180.9,180.74,59.1719]
[1722112200538,20.0,180.89,180.74,13.8319]
[1722112200735,5.529,180.87,180.7,5.5339]
[1722112200940,5.5293,180.86,180.71,5.5335]
[1722112201139,20.0,180.89,180.69,13.8358]
[1722112201339,22.3192,180.9,180.69,13.8358]
[1722112201340,45.5289,180.87,180.69,13.8358]
[1722112201552,45.34,180.86,180.69,19.37]
[1722112201748,20.0,180.85,180.69,13.8358]
[1722112202045,50.8699,180.84,180.69,13.8358]
[1722112202350,20.0,180.81,180.62,26.13]
[1722112202656,20.34,180.8,180.62,26.13]
[1722112202859,45.0,180.79,180.62,26.13]
[1722112203038,0.17,180.8,180.72,5.5333]
[1722112203238,20.0,180.86,180.62,26.13]
[1722112203461,20.0,180.91,180.77,5.5317]
[1722112203639,27.8473,180.9,180.75,13.8308]
[1722112204358,22.3192,180.9,180.81,5.5304]
[1722112204561,22.3192,180.9,180.76,45.34]
[1722112204860,22.3192,180.9,180.77,5.5317]
[1722112205063,22.3192,180.9,180.78,5.5314]
[1722112205250,22.3192,180.9,180.68,26.13]
[1722112205459,20.0,180.89,180.75,5.5322]
[1722112205660,22.3192,180.9,180.75,5.5324]
[1722112205882,70.6983,180.89,180.75,5.5324]
[1722112206177,22.3192,180.9,180.75,5.5323]
[1722112206383,42.3192,180.9,180.63,27.35247025]
[1722112206584,5.529,180.87,180.72,5.5333]
[1722112206877,20.0,180.86,180.72,13.8331]
[1722112207177,5.5309,180.81,180.67,19.3715]
[1722112207361,50.871,180.8,180.67,13.8367]
[1722112207562,20.0,180.79,180.67,13.8367]
[1722112208081,20.0,180.79,180.67,5.5347]
[1722112208248,20.0,180.76,180.52,6.2189]
[1722112208449,20.0,180.72,180.57,5.538]
[1722112208651,65.34,180.71,180.58,5.5375]
[1722112208846,65.34,180.71,180.59,5.5373]
[1722112209301,65.34,180.71,180.57,13.8446]
[1722112209477,20.34,180.71,180.59,5.5371]
[1722112209684,45.0,180.7,180.52,22.9289]
[1722112209983,0.34,180.71,180.52,22.9289]
[1722112209984,0.17,180.71,180.52,22.9289]
[1722112210282,22.3192,180.77,180.52,22.9289]
[1722112210490,20.34,180.76,180.64,13.8395]
[1722112210906,5.5351,180.67,180.51,5.79574209]
[1722112211067,20.0,180.71,180.46,32.3489]
[1722112211068,20.34,180.66,180.46,32.3489]
[1722112211271,36.1916,180.65,180.53,5.539]
[1722112211475,6.1276,180.63,180.53,5.539]
[1722112211777,6.1276,180.63,180.53,13.8478]
[1722112211778,0.34,180.62,180.53,13.8478]
[1722112212086,0.17,180.61,180.5,5.54]
[1722112212602,0.17,180.61,180.47,7.027108]
[1722112212783,0.17,180.61,180.52,13.8486]
[1722112212971,0.17,180.61,180.5,5.5399]
[1722112213171,0.17,180.61,180.48,5.5405]
[1722112213390,40.17,180.61,180.42,14.6376458]
[1722112213598,45.17,180.6,180.46,5.5411]
[1722112213774,20.0,180.58,180.46,5.5411]
[1722112213981,65.34,180.57,180.46,5.5411]
[1722112214175,45.34,180.57,180.46,5.5411]
[1722112214380,65.0,180.56,180.46,5.5411]
[1722112214570,0.34,180.55,180.46,5.5411]
[1722112214773,15.4398,180.54,180.48,5.5407]
[1722112214992,15.4398,180.54,180.42,0.7817458]
[1722112215377,15.4398,180.54,180.48,5.5406]
[1722112215592,15.4398,180.54,180.46,5.5412]
[1722112216004,15.4398,180.54,180.42,0.7817458]
[1722112216291,15.4398,180.62,180.52,5.5394]
[1722112216478,15.4398,180.62,180.42,0.7817458]
[1722112216479,15.4398,180.62,180.47,16.71]
[1722112216883,15.4398,180.62,180.6,5.5369]
[1722112217199,6.5944,180.72,180.52,16.71]
[1722112217500,6.5944,180.72,180.62,13.8409]
[1722112217689,6.5944,180.72,180.66,13.8378]
[1722112218288,6.5944,180.72,180.66,19.3728]
[1722112218605,15.4398,180.74,180.66,13.8378]
[1722112218775,15.4398,180.74,180.7,5.5339]
[1722112218977,15.4398,180.74,180.7,13.8346]
[1722112219177,6.5944,180.78,180.7,13.8346]
[1722112219600,15.4398,180.81,180.74,13.8319]
[1722112220114,15.4398,180.88,180.79,5.531]
[1722112220281,15.4398,180.88,180.67,26.13]
[1722112220282,35.4398,180.88,180.73,13.8325]
[1722112220487,15.4398,180.88,180.73,13.8325]
[1722112220706,15.4398,180.88,180.74,45.34]
[1722112220896,15.4398,180.88,180.77,13.8294]
[1722112221214,15.4398,180.88,180.71,13.8335]
[1722112221382,15.4398,180.88,180.75,5.5322]
[1722112221589,15.4398,180.88,180.71,13.8335]
[1722112221909,15.4398,180.88,180.72,45.34]
[1722112222102,15.4398,180.88,180.76,5.532]
[1722112222304,0.34,180.87,180.72,45.17]
[1722112222683,15.4398,180.88,180.73,0.17]
[1722112222903,15.4398,180.88,180.79,5.531]
[1722112223110,15.4398,180.88,180.77,5.5317]
[1722112223495,15.4398,180.88,180.73,0.17]
[1722112223901,15.4398,180.88,180.8,5.5308]
[1722112224116,15.4398,180.88,180.79,19.3589]
[1722112224305,15.4398,180.88,180.73,14.0022]
[1722112224609,15.4398,180.88,180.67,42.84]
[1722112224784,15.4398,180.88,180.79,5.5312]
[1722112224983,15.4398,180.88,180.8,5.5307]
[1722112225719,15.4398,180.88,180.81,13.826]
[1722112227814,15.4398,180.95,180.85,13.8232]
[1722112227989,15.4398,180.95,180.89,5.528]
[1722112228616,15.4398,180.95,180.93,5.5268]
[1722112228805,15.4398,180.95,180.93,7.47050085]
[1722112229113,15.4398,180.95,180.93,21.28780085]
[1722112229310,15.4398,180.95,180.93,15.76100085]
[1722112229504,15.4398,180.95,180.93,1.94370085]
[1722112230095,20.0,180.94,180.75,6.5842]
[1722112230297,15.4398,180.95,180.69,22.9415]
[1722112230511,0.34,180.94,180.81,13.8266]
[1722112230729,15.4398,180.95,180.85,13.8235]
[1722112231014,15.4398,180.95,180.89,13.82]
[1722112231224,15.4398,180.95,180.92,5.5272]
[1722112231591,22.0342,181.02,180.93,13.8174]
[1722112231791,22.0342,181.02,180.93,19.3442]
[1722112231995,22.0342,181.02,180.94,5.5265]
[1722112232214,22.0342,181.02,180.93,13.8174]
[1722112233321,20.0,181.01,180.88,5.5284]
[1722112233505,20.0,181.01,180.9,5.5278]
[1722112233821,45.0,181.0,180.83,32.5698]
[1722112234016,50.5251,181.0,180.86,5.5289]
[1722112234318,50.5251,181.0,180.73,42.84]
[1722112234319,5.5262,180.96,180.82,5.5302]
[1722112234518,40.0,180.99,180.73,26.13]
[1722112234519,40.34,180.99,180.73,26.13]
[1722112234825,45.0,180.98,180.86,13.822]
[1722112235121,20.34,180.99,180.93,5.5269]
[1722112235122,20.0,180.99,180.93,5.5269]
[1722112235318,22.0342,181.02,180.9,13.819]
[1722112235319,20.0,181.01,180.9,13.819]
[1722112235818,20.0,181.01,180.82,26.13]
[1722112235819,22.0342,181.02,180.94,5.5264]
[1722112236009,22.0342,181.02,180.89,0.17]
[1722112236218,15.4398,181.02,180.88,45.34]
[1722112236602,15.4398,181.02,180.98,13.8135]
[1722112237116,15.4398,181.02,180.84,26.13]
[1722112237325,15.4398,181.02,180.93,5.5269]
[1722112237499,15.4398,181.02,180.92,13.8177]
[1722112237697,15.4398,181.02,180.84,43.94515535]
[1722112237893,15.4398,181.02,180.95,5.5261]